bitfinex-derivatives/quotes_BTCF0:USTF0_20250913
["timestamp","ask_amount","ask_price","bid_price","bid_amount"]
[1757728477713,0.46863778,115840.0,115830.0,0.59112]
[1757728478017,0.58050971,115840.0,115830.0,0.69427098]
[1757728478215,0.58306627,115840.0,115830.0,0.69427098]
[1757728478415,0.58306627,115840.0,115830.0,0.59112]
[1757728478611,0.48091529,115840.0,115830.0,0.22627098]
[1757728478818,0.58406627,115840.0,115830.0,0.22627098]
[1757728479718,0.53795127,115840.0,115830.0,0.22927098]
[1757728480218,0.43480029,115840.0,115830.0,0.22927098]
[1757728480514,0.43380029,115840.0,115830.0,0.22727098]
[1757728480717,0.50364018,115840.0,115830.0,0.22727098]
[1757728481111,0.06169694,115850.0,115830.0,2.71437294]
[1757728481319,0.02674187,115850.0,115840.0,0.67854294]
[1757728481512,0.02674187,115850.0,115840.0,1.51966294]
[1757728481716,0.02674187,115850.0,115840.0,2.31062294]
[1757728482517,0.02774187,115850.0,115840.0,2.31062294]
[1757728483722,0.02774187,115850.0,115840.0,2.31262294]
[1757728483916,0.02674187,115850.0,115840.0,2.31262294]
[1757728484110,0.02774187,115850.0,115840.0,2.31262294]
[1757728485116,0.02774187,115850.0,115840.0,0.91086294]
[1757728485317,0.02774187,115850.0,115770.0,0.03372]
[1757728485318,0.01303,115780.0,115770.0,0.03372]
[1757728485516,0.39691,115780.0,115770.0,1.09427098]
[1757728485716,0.39691,115780.0,115770.0,0.99427098]
[1757728485917,0.38388,115780.0,115770.0,0.99427098]
[1757728486123,0.75006098,115780.0,115770.0,0.05]
[1757728486417,0.39691,115780.0,115770.0,0.23124]
[1757728486620,0.76727422,115780.0,115770.0,0.54]
[1757728486823,0.79797161,115780.0,115770.0,0.54]
[1757728487127,0.76727422,115780.0,115770.0,0.54]
[1757728487326,0.70847764,115780.0,115770.0,0.546]
[1757728487618,0.70847764,115780.0,115770.0,0.476]
[1757728487619,0.96387284,115780.0,115770.0,0.476]
[1757728487818,1.49298743,115780.0,115740.0,0.82128]
[1757728488019,0.8724884,115750.0,115740.0,0.92333]
[1757728488316,1.03863906,115750.0,115740.0,0.09336]
[1757728488517,1.02337703,115750.0,115740.0,0.09336]
[1757728488824,0.96232844,115750.0,115740.0,0.53336]
[1757728489227,2.7025612,115750.0,115710.0,0.01336]
[1757728489424,0.04559746,115730.0,115720.0,0.01336]
[1757728489622,0.7216,115730.0,115720.0,0.14]
[1757728489922,0.7216,115730.0,115720.0,0.52]
[1757728490114,0.0449,115720.0,115690.0,0.01336]
[1757728490314,0.76705038,115700.0,115690.0,0.01336]
[1757728490525,0.77171824,115700.0,115690.0,0.01336]
[1757728490823,0.77171824,115700.0,115690.0,0.54336]
[1757728491124,0.74141521,115700.0,115690.0,1.14681]
[1757728491715,0.3609293,115710.0,115700.0,0.03461]
[1757728491919,0.3609293,115710.0,115700.0,0.32361]
[1757728492120,0.0001293,115710.0,115700.0,0.80477422]
[1757728492320,0.0001293,115710.0,115700.0,0.90477422]
[1757728492828,0.0001293,115710.0,115700.0,0.92249023]
[1757728493023,0.0001293,115710.0,115700.0,1.50649023]
[1757728493326,0.3608,115730.0,115700.0,1.62685445]
[1757728493523,0.3608,115730.0,115720.0,0.18797422]
[1757728493723,0.38057712,115740.0,115730.0,0.03461]
[1757728493922,0.40668768,115740.0,115730.0,0.84997]
[1757728494122,0.3608,115740.0,115730.0,1.22033422]
[1757728494331,0.48116422,115750.0,115740.0,0.01272]
[1757728494626,0.86806862,115750.0,115740.0,0.01272]
[1757728494816,0.86806862,115750.0,115740.0,0.46432]
[1757728495019,0.93776313,115750.0,115740.0,0.46232]
[1757728495429,0.81739891,115750.0,115740.0,0.48421]
[1757728495625,0.7477044,115750.0,115740.0,0.52421]
[1757728495825,0.7216,115750.0,115740.0,0.52421]
[1757728496529,0.7216,115750.0,115740.0,0.52721]
[1757728496921,0.7236,115750.0,115740.0,0.52821]
[1757728497122,0.3628,115750.0,115740.0,0.89557422]
[1757728497324,0.3628,115750.0,115740.0,1.41057422]
[1757728497525,0.3628,115750.0,115740.0,1.37057422]
[1757728497831,0.02007417,115760.0,115750.0,0.03461]
[1757728498018,0.02007417,115760.0,115750.0,1.12577422]
[1757728498220,0.02007417,115760.0,115750.0,1.98377422]
[1757728498533,0.3608,115770.0,115760.0,0.03461]
[1757728498726,0.3608,115770.0,115760.0,0.19497422]
[1757728499231,0.3608,115780.0,115770.0,0.03461]
[1757728499528,0.3608,115780.0,115770.0,1.57261422]
[1757728499839,0.3608,115780.0,115770.0,3.23153422]
[1757728500028,0.3608,115790.0,115780.0,0.03461]
[1757728500224,0.3608,115790.0,115780.0,0.15497422]
[1757728500436,0.3608,115790.0,115780.0,0.19497422]
[1757728500731,0.1494095,115810.0,115790.0,0.03461]
[1757728500732,0.38108252,115810.0,115790.0,0.03461]
[1757728500927,0.38108252,115810.0,115800.0,0.97257422]
[1757728501121,0.38108252,115810.0,115800.0,1.54257422]
[1757728501427,0.38108252,115810.0,115800.0,1.58257422]
[1757728501732,0.02028252,115810.0,115800.0,1.94137422]
[1757728502125,0.38108252,115810.0,115800.0,0.07261]
[1757728502332,0.50144674,115810.0,115800.0,0.07261]
[1757728502531,0.50144674,115810.0,115800.0,0.90965]
[1757728503134,0.50244674,115810.0,115800.0,0.91465]
[1757728503335,0.38208252,115810.0,115800.0,0.91465]
[1757728503837,0.55891731,115810.0,115800.0,0.01072]
[1757728504136,0.55891731,115810.0,115800.0,0.83372]
[1757728504528,0.43755309,115810.0,115800.0,1.04099243]
[1757728504726,0.04645006,115810.0,115800.0,1.61199243]
[1757728504933,0.04645006,115810.0,115800.0,0.79499243]
[1757728505236,0.04645006,115810.0,115800.0,1.61151243]
[1757728505436,0.04645006,115810.0,115800.0,1.60551243]
[1757728505639,0.07675309,115810.0,115800.0,2.00289486]
[1757728505831,0.04645006,115810.0,115800.0,1.85751243]
[1757728506534,0.04645006,115810.0,115800.0,1.85851243]
[1757728508645,0.04645006,115810.0,115800.0,1.85767243]
[1757728510640,0.04645006,115810.0,115800.0,1.85735243]
[1757728512548,0.07675309,115810.0,115800.0,1.85735243]
[1757728513046,0.07675309,115810.0,115800.0,1.75273486]
[1757728513245,0.03030303,115820.0,115810.0,0.03461]
[1757728513447,0.43655341,115830.0,115820.0,0.03461]
[1757728513633,0.39110303,115830.0,115820.0,1.56387243]
[1757728513845,0.39110303,115830.0,115820.0,1.60387243]
[1757728513846,0.40642944,115830.0,115820.0,1.60387243]
[1757728514040,0.06092225,115830.0,115820.0,3.62315243]
[1757728514248,0.06092225,115830.0,115820.0,2.80927243]
[1757728514545,0.06092225,115830.0,115820.0,3.26119243]
[1757728515737,0.06192225,115830.0,115820.0,2.44747243]
[1757728515937,0.06192225,115830.0,115820.0,3.26075243]
[1757728516343,0.03043752,115830.0,115820.0,3.62455243]
[1757728516747,0.03043752,115830.0,115820.0,3.64220065]
[1757728516948,0.03043752,115830.0,115820.0,3.64380065]
[1757728517849,0.03043752,115830.0,115820.0,2.47012065]
[1757728518047,0.03043752,115830.0,115820.0,3.28292065]
[1757728519446,0.07610005,115830.0,115820.0,3.28292065]
[1757728519952,0.04566253,115830.0,115820.0,3.28260065]
[1757728520354,0.42172225,115840.0,115830.0,0.01272]
[1757728520555,0.42172225,115840.0,115830.0,0.75999243]
[1757728520856,0.42172225,115840.0,115830.0,1.61187243]
[1757728521457,0.43791269,115840.0,115830.0,1.61187243]
[1757728521762,0.43791269,115840.0,115830.0,1.61287243]
[1757728522658,0.43791269,115840.0,115830.0,1.61387243]
[1757728522862,0.3608,115840.0,115830.0,1.61387243]
[1757728523258,0.3608,115840.0,115830.0,1.61311243]
[1757728523459,0.42189146,115840.0,115830.0,1.61311243]
[1757728523959,0.3608,115840.0,115830.0,1.61311243]
[1757728524262,0.3608,115840.0,115830.0,1.61291243]
[1757728525167,0.38709616,115840.0,115830.0,1.61291243]
[1757728525467,0.44818762,115840.0,115830.0,0.80199243]
[1757728525666,0.44818762,115840.0,115830.0,1.61231243]
[1757728526967,0.38709616,115840.0,115830.0,1.61231243]
[1757728527169,0.38709616,115840.0,115830.0,0.80199243]
[1757728527367,0.46420885,115840.0,115830.0,0.80199243]
[1757728527567,0.46420885,115840.0,115830.0,1.61183243]
[1757728527869,0.46420885,115840.0,115830.0,1.57815641]
[1757728528269,0.46420885,115840.0,115830.0,1.59909641]
[1757728529869,0.46420885,115840.0,115830.0,1.52917245]
[1757728530170,0.46420885,115840.0,115830.0,0.71941245]
[1757728530367,0.46420885,115840.0,115830.0,1.52841245]
[1757728530973,0.46420885,115840.0,115830.0,1.46496]
[1757728531271,0.46420885,115840.0,115830.0,0.80134243]
[1757728531665,0.46420885,115840.0,115830.0,1.61002243]
[1757728531973,0.46420885,115840.0,115830.0,1.46464]
[1757728532272,0.46420885,115840.0,115830.0,0.80134243]
[1757728532474,0.46420885,115840.0,115830.0,1.60978243]
[1757728532673,0.46420885,115840.0,115830.0,0.80134243]
[1757728532875,0.46420885,115840.0,115830.0,1.60978243]
[1757728534374,0.38709616,115840.0,115830.0,1.60978243]
[1757728534771,0.46388837,115840.0,115830.0,1.60978243]
[1757728535765,0.60890969,115840.0,115830.0,0.65596]
[1757728535973,0.60890969,115840.0,115830.0,0.84344]
[1757728535974,0.78211748,115840.0,115830.0,0.84344]
[1757728536172,0.8900667,115840.0,115830.0,0.84344]
[1757728536370,0.96687572,115840.0,115830.0,0.84344]
[1757728536570,0.8589265,115840.0,115830.0,0.84344]
[1757728537177,0.8589265,115840.0,115830.0,1.03344]
[1757728538978,0.71354407,115840.0,115830.0,1.03344]
[1757728539177,0.8589265,115840.0,115830.0,1.03344]
[1757728539378,0.6089265,115840.0,115830.0,1.03344]
[1757728539867,0.6089265,115840.0,115830.0,0.96350906]
[1757728540067,0.6310465,115840.0,115830.0,0.99746906]
[1757728540378,0.55423748,115840.0,115830.0,0.22396]
[1757728540579,0.6621867,115840.0,115830.0,0.22396]
[1757728540780,0.6621867,115840.0,115830.0,1.0308]
[1757728541480,0.63113657,115840.0,115830.0,1.0308]
[1757728542684,0.63113657,115840.0,115830.0,0.98417938]
[1757728547191,0.48575414,115840.0,115830.0,0.98417938]
[1757728547390,0.63113657,115840.0,115830.0,0.98417938]
[1757728547690,0.55423748,115840.0,115830.0,0.89093814]
[1757728547891,0.66194948,115840.0,115830.0,0.89093814]
[1757728549785,0.73888397,115840.0,115830.0,0.89093814]
[1757728549992,0.63117197,115840.0,115830.0,1.15479721]
[1757728551490,0.55423748,115840.0,115830.0,1.15479721]
[1757728552487,0.6253815,115840.0,115830.0,1.15479721]
[1757728553987,0.64075904,115840.0,115830.0,1.15479721]
[1757728555289,0.89760904,115840.0,115830.0,0.32]
[1757728555589,0.0346,115820.0,115810.0,0.02322]
[1757728555791,1.11138677,115820.0,115810.0,0.77634]
[1757728556294,1.11138677,115820.0,115810.0,0.78974]
[1757728557096,1.03444693,115820.0,115810.0,0.78974]
[1757728557298,1.09595495,115820.0,115810.0,0.78974]
[1757728558397,1.00984753,115820.0,115810.0,0.78974]
[1757728558802,0.8645007,115820.0,115810.0,0.78974]
[1757728559005,1.00984753,115820.0,115810.0,0.78974]
[1757728559303,0.94833951,115820.0,115810.0,0.78974]
[1757728559604,0.80299268,115820.0,115810.0,0.78974]
[1757728559904,0.94833951,115820.0,115810.0,0.78974]
[1757728562106,0.94833951,115820.0,115810.0,0.24662]
[1757728562301,0.94833951,115820.0,115810.0,1.04922]
[1757728564001,0.97907654,115820.0,115810.0,1.04922]
[1757728565106,0.83372971,115820.0,115810.0,1.04922]
[1757728565306,0.97907654,115820.0,115810.0,1.04922]
[1757728566408,0.95403701,115820.0,115810.0,1.04834]
[1757728567509,0.83372971,115820.0,115810.0,1.04834]
[1757728567711,0.94143701,115820.0,115810.0,1.04834]
[1757728567899,0.82112971,115820.0,115810.0,1.04834]
[1757728568299,0.94143701,115820.0,115810.0,1.04834]
[1757728573314,0.94143701,115820.0,115810.0,1.34834]
[1757728574106,0.94143701,115820.0,115810.0,1.34686]
[1757728575917,0.82112971,115820.0,115810.0,1.34686]
[1757728576111,0.94143701,115820.0,115810.0,1.34686]
[1757728577313,0.98754256,115820.0,115810.0,1.34686]
[1757728578410,1.07394214,115820.0,115810.0,1.34686]
[1757728578607,0.86723526,115820.0,115810.0,1.34686]
[1757728578811,1.07394214,115820.0,115810.0,1.34686]
[1757728579519,1.07394214,115820.0,115810.0,0.54662]
[1757728579819,1.07394214,115820.0,115810.0,1.34614]
[1757728580219,0.86723526,115820.0,115810.0,1.34614]
[1757728580416,1.07394214,115820.0,115810.0,1.34614]
[1757728580719,0.86723526,115820.0,115810.0,1.34614]
[1757728580918,1.07394214,115820.0,115810.0,1.34614]
[1757728581218,1.04320511,115820.0,115810.0,1.34614]
[1757728582618,0.83649823,115820.0,115810.0,1.34614]
[1757728582820,1.04320511,115820.0,115810.0,1.34614]
[1757728584519,0.93985167,115820.0,115810.0,1.34614]
[1757728584720,0.97064321,115820.0,115810.0,1.34614]
[1757728584921,1.07399665,115820.0,115810.0,1.34614]
[1757728585315,1.04320511,115820.0,115810.0,1.34614]
[1757728585921,0.93985167,115820.0,115810.0,1.34614]
[1757728586322,1.04320511,115820.0,115810.0,1.34614]
[1757728587826,0.83649823,115820.0,115810.0,1.34614]
[1757728588025,1.04114065,115820.0,115810.0,1.34614]
[1757728588623,0.83443377,115820.0,115810.0,1.34614]
[1757728588926,1.04114065,115820.0,115810.0,1.34614]
[1757728589221,0.83443377,115820.0,115810.0,1.34614]
[1757728589421,0.92249511,115820.0,115810.0,1.34614]
[1757728589831,0.81914167,115820.0,115810.0,1.44949344]
[1757728590017,0.45834167,115820.0,115810.0,1.44949344]
[1757728590224,0.56169511,115820.0,115810.0,1.44949344]
[1757728590522,0.45834167,115820.0,115810.0,1.44949344]
[1757728591435,0.56169511,115820.0,115810.0,1.44949344]
[1757728592134,0.45834167,115820.0,115810.0,1.44949344]
[1757728592318,0.56169511,115820.0,115810.0,1.44949344]
[1757728593423,0.56169511,115820.0,115810.0,1.40949344]
[1757728593627,0.43634167,115820.0,115810.0,1.69949344]
[1757728594123,0.46703624,115820.0,115810.0,1.69949344]
[1757728594328,0.40552822,115820.0,115810.0,1.69949344]
[1757728595431,0.45173232,115820.0,115810.0,1.69949344]
[1757728597335,0.43187469,115820.0,115810.0,1.69949344]
[1757728597535,0.43187469,115820.0,115810.0,1.71721561]
[1757728599341,0.43187469,115820.0,115810.0,1.46721561]
[1757728602050,0.43187469,115820.0,115810.0,1.36386217]
[1757728602248,0.43187469,115820.0,115810.0,1.46721561]
[1757728603156,0.43187469,115820.0,115810.0,0.66769561]
[1757728603343,0.43187469,115820.0,115810.0,1.46325561]
[1757728604057,0.38567059,115820.0,115810.0,1.46325561]
[1757728605956,0.38567059,115820.0,115810.0,1.46281561]
[1757728607651,0.02487059,115820.0,115810.0,1.46281561]
[1757728608356,0.38567059,115820.0,115810.0,1.46281561]
[1757728609160,0.02487059,115820.0,115810.0,1.46281561]
[1757728609459,0.38567059,115820.0,115810.0,1.46281561]
[1757728612264,0.02487059,115820.0,115810.0,1.46281561]
[1757728615065,0.02487059,115820.0,115810.0,0.66769561]
[1757728615255,0.02487059,115820.0,115810.0,1.46181561]
[1757728618669,0.02487059,115820.0,115810.0,1.56516905]
[1757728620466,0.02487059,115820.0,115810.0,1.92596905]
[1757728621874,0.02487059,115820.0,115810.0,1.56512905]
[1757728622476,0.02487059,115820.0,115810.0,0.77104905]
[1757728622778,0.02487059,115820.0,115810.0,1.56512905]
[1757728622968,0.02487059,115820.0,115810.0,1.46177561]
[1757728623371,0.02487059,115820.0,115810.0,1.90142165]
[1757728623572,0.02487059,115820.0,115810.0,2.26222165]
[1757728624769,0.02387059,115820.0,115810.0,2.26222165]
[1757728626391,0.02387059,115820.0,115810.0,2.26422165]
[1757728627073,0.02387059,115820.0,115810.0,2.26522165]
[1757728627277,0.02487059,115820.0,115810.0,2.26722165]
[1757728628281,0.02487059,115820.0,115810.0,2.01722165]
[1757728628485,0.02487059,115820.0,115810.0,2.04290398]
[1757728629681,0.02487059,115820.0,115810.0,1.81051477]
[1757728629882,0.02487059,115820.0,115810.0,2.04290398]
[1757728632188,0.02487059,115820.0,115810.0,1.95653138]
[1757728633186,0.02487059,115820.0,115810.0,1.16253138]
[1757728633671,0.02487059,115820.0,115810.0,1.95649138]
[1757728638081,0.02487059,115820.0,115810.0,1.95641138]
[1757728640082,0.02487059,115820.0,115810.0,1.16253138]
[1757728640283,0.02487059,115820.0,115810.0,1.95641138]
[1757728641486,0.02487059,115820.0,115810.0,1.72402217]
[1757728641686,0.02487059,115820.0,115810.0,1.95641138]
[1757728645889,0.45175673,115820.0,115810.0,0.56934217]
[1757728646088,0.40508109,115820.0,115810.0,0.72426831]
[1757728646289,0.40508109,115820.0,115810.0,1.51806831]
[1757728646486,0.32761802,115820.0,115810.0,1.59553138]
[1757728646687,0.32761802,115820.0,115810.0,1.59549138]
[1757728647694,0.32761802,115820.0,115810.0,0.80173138]
[1757728647894,0.32761802,115820.0,115810.0,1.59549138]
[1757728648893,0.32761802,115820.0,115810.0,0.80173138]
[1757728649087,0.32761802,115820.0,115810.0,1.59549138]
[1757728650794,0.32761802,115820.0,115810.0,0.80173138]
[1757728651093,0.32761802,115820.0,115810.0,1.59549138]
[1757728654100,0.29683059,115820.0,115810.0,1.59549138]
[1757728659301,0.04683059,115820.0,115810.0,1.59549138]
[1757728660602,0.04683059,115820.0,115810.0,3.25349138]
[1757728664505,0.04683059,115820.0,115810.0,3.02110217]
[1757728664705,0.04683059,115820.0,115810.0,3.25349138]
[1757728667204,0.04683059,115820.0,115810.0,3.02110217]
[1757728667400,0.04683059,115820.0,115810.0,3.25349138]
[1757728668807,0.04683059,115820.0,115810.0,2.45973138]
[1757728669008,0.04683059,115820.0,115810.0,3.25333138]
[1757728672611,0.12429366,115820.0,115810.0,2.22734217]
[1757728672911,0.48509366,115820.0,115810.0,3.17578831]
[1757728673410,0.40763059,115820.0,115810.0,2.38226831]
[1757728673712,0.48509366,115820.0,115810.0,3.17574831]
[1757728674413,0.40763059,115820.0,115810.0,3.25321138]
[1757728674609,0.40763059,115820.0,115810.0,2.45973138]
[1757728674811,0.40763059,115820.0,115810.0,3.25321138]
[1757728675012,0.04683059,115820.0,115810.0,3.25321138]
[1757728677209,0.04683059,115820.0,115810.0,3.02082217]
[1757728677406,0.40763059,115820.0,115810.0,3.25321138]
[1757728678213,0.04683059,115820.0,115810.0,3.25321138]
[1757728678415,0.40763059,115820.0,115810.0,3.02082217]
[1757728678611,0.04683059,115820.0,115810.0,3.25321138]
[1757728679816,0.40763059,115820.0,115810.0,3.25321138]
[1757728680718,0.04683059,115820.0,115810.0,3.25321138]
[1757728681419,0.40763059,115820.0,115810.0,3.25321138]
[1757728681608,0.04683059,115820.0,115810.0,3.25321138]
[1757728683812,0.04683059,115820.0,115810.0,3.02082217]
[1757728684013,0.40763059,115820.0,115810.0,3.25321138]
[1757728684209,0.45383469,115820.0,115810.0,3.25321138]
[1757728684418,0.45418224,115820.0,115810.0,3.25321138]
[1757728685216,0.48500441,115820.0,115810.0,3.25321138]
[1757728688518,0.12420441,115820.0,115810.0,3.25321138]
[1757728688710,0.12420394,115820.0,115810.0,3.25321138]
[1757728690420,0.12420394,115820.0,115810.0,3.1241481]
[1757728692925,0.12420394,115820.0,115810.0,3.02082217]
[1757728693116,0.12420394,115820.0,115810.0,3.1241481]
[1757728693825,0.12420394,115820.0,115810.0,3.02082217]
[1757728694016,0.12420394,115820.0,115810.0,3.1241481]
[1757728694323,0.04717767,115820.0,115810.0,3.1241481]
[1757728696624,0.04717767,115820.0,115810.0,2.3306681]
[1757728696825,0.04717767,115820.0,115810.0,3.1238681]
[1757728701022,0.07799984,115820.0,115810.0,3.1238681]
[1757728701815,0.07799984,115820.0,115810.0,3.02054217]
[1757728702018,0.07799984,115820.0,115810.0,3.1238681]
[1757728703332,0.07799984,115820.0,115810.0,3.0838681]
[1757728703528,0.07799984,115820.0,115810.0,3.1238681]
[1757728704335,0.04717767,115820.0,115810.0,3.1238681]
[1757728705429,0.04717767,115820.0,115810.0,3.02054217]
[1757728705629,0.04717767,115820.0,115810.0,3.1238681]
[1757728706131,0.04717767,115820.0,115810.0,3.02054217]
[1757728706327,0.04717767,115820.0,115810.0,3.1238681]
[1757728707330,0.04717767,115820.0,115810.0,3.00282]
[1757728707630,0.04717767,115820.0,115810.0,3.10614593]
[1757728709625,0.04717767,115820.0,115810.0,3.00282]
[1757728709820,0.04717767,115820.0,115810.0,3.10614593]
[1757728710025,0.02521767,115820.0,115810.0,3.57027186]
[1757728710427,0.02521767,115820.0,115810.0,3.46694593]
[1757728710630,0.02521767,115820.0,115810.0,3.57027186]
[1757728711232,0.02521767,115820.0,115810.0,3.36362]
[1757728711433,0.02521767,115820.0,115810.0,3.57027186]
[1757728711633,0.02521767,115820.0,115810.0,3.46694593]
[1757728711821,0.02521767,115820.0,115810.0,3.57027186]
[1757728712221,0.02521767,115820.0,115810.0,3.36362]
[1757728712432,0.02521767,115820.0,115810.0,3.57027186]
[1757728716834,0.02521767,115820.0,115810.0,3.90656446]
[1757728718430,0.01992239,115830.0,115820.0,0.03513]
[1757728718632,0.01992239,115830.0,115820.0,1.17258186]
[1757728719336,0.01992239,115830.0,115820.0,0.81178186]
[1757728719636,0.01992239,115830.0,115820.0,0.81378186]
[1757728719837,0.01992239,115830.0,115820.0,0.81678186]
[1757728721440,0.01992239,115830.0,115820.0,0.82544328]
[1757728721838,0.01992239,115830.0,115820.0,1.18624328]
[1757728730645,0.04410031,115830.0,115820.0,1.18624328]
[1757728734038,0.04410031,115830.0,115820.0,1.17758186]
[1757728734238,0.05074456,115830.0,115820.0,1.97014186]
[1757728734446,0.09789248,115830.0,115820.0,1.60934186]
[1757728735850,0.07492248,115830.0,115820.0,1.97014186]
[1757728737657,0.07492248,115830.0,115820.0,1.17758186]
[1757728737849,0.07492248,115830.0,115820.0,1.97010186]
[1757728739256,0.09694866,115830.0,115820.0,1.97010186]
[1757728739644,0.12112658,115830.0,115820.0,1.97010186]
[1757728743858,0.12112658,115830.0,115820.0,1.60930186]
[1757728744158,0.04410031,115830.0,115820.0,1.60930186]
[1757728746259,0.04410031,115830.0,115820.0,1.97010186]
[1757728746464,0.04410031,115830.0,115820.0,1.60930186]
[1757728746960,0.04412983,115830.0,115820.0,1.60930186]
[1757728747263,0.06709983,115830.0,115820.0,0.61013]
[1757728747560,0.06709983,115830.0,115820.0,1.60914186]
[1757728748562,0.04412983,115830.0,115820.0,1.60914186]
[1757728749161,0.04412983,115830.0,115820.0,1.40249]
[1757728749361,0.04412983,115830.0,115820.0,1.60914186]
[1757728750460,0.04412983,115830.0,115820.0,1.63490174]
[1757728753864,0.04412983,115830.0,115820.0,3.29274174]
[1757728754265,0.04412983,115830.0,115820.0,3.06033]
[1757728754466,0.04412983,115830.0,115820.0,3.29274174]
[1757728758669,0.37160041,115830.0,115820.0,2.26797]
[1757728758871,0.73241084,115830.0,115820.0,3.21511116]
[1757728759264,0.65494026,115830.0,115820.0,3.21511116]
[1757728759461,0.65494026,115830.0,115820.0,2.42291116]
[1757728759661,0.65494026,115830.0,115820.0,3.21507116]
[1757728760868,0.73241084,115830.0,115820.0,3.21507116]
[1757728763868,0.65494026,115830.0,115820.0,3.21507116]
[1757728764669,0.73241084,115830.0,115820.0,3.21507116]
[1757728766971,0.71248845,115830.0,115820.0,3.21507116]
[1757728769376,0.63501787,115830.0,115820.0,3.21507116]
[1757728769582,0.71248845,115830.0,115820.0,3.21507116]
[1757728770081,0.71248845,115830.0,115820.0,3.06013]
[1757728770283,0.71248845,115830.0,115820.0,3.21507116]
[1757728771382,0.71248845,115830.0,115820.0,3.06013]
[1757728771580,0.71248845,115830.0,115820.0,3.21507116]
[1757728772381,0.71248845,115830.0,115820.0,3.06013]
[1757728772581,0.63501787,115830.0,115820.0,3.21507116]
[1757728772779,0.71248845,115830.0,115820.0,3.21507116]
[1757728776381,0.63501787,115830.0,115820.0,3.21507116]
[1757728779083,0.63501787,115830.0,115820.0,3.06013]
[1757728779284,0.46248845,115830.0,115820.0,3.06013]
[1757728779483,0.46248845,115830.0,115820.0,3.21507116]
[1757728782782,0.46248845,115830.0,115820.0,1.55723116]
[1757728784393,0.46204414,115830.0,115820.0,1.55723116]
[1757728784988,0.53951472,115830.0,115820.0,1.55723116]
[1757728785189,0.50869255,115830.0,115820.0,1.55723116]
[1757728785387,0.50869255,115830.0,115820.0,1.40229]
[1757728785689,0.53954506,115830.0,115820.0,1.55723116]
[1757728786083,0.50869255,115830.0,115820.0,1.55723116]
[1757728786982,0.43122197,115830.0,115820.0,1.55723116]
[1757728787282,0.43122197,115830.0,115820.0,1.40229]
[1757728787488,0.43122197,115830.0,115820.0,1.63470174]
[1757728787988,0.43122197,115830.0,115820.0,1.40229]
[1757728788189,0.43122197,115830.0,115820.0,1.63470174]
[1757728788389,0.07042197,115830.0,115820.0,1.63470174]
[1757728789091,0.0462041,115830.0,115820.0,1.63470174]
[1757728789791,0.0462041,115830.0,115820.0,1.40229]
[1757728789991,0.0462041,115830.0,115820.0,1.63470174]
[1757728791695,0.0462041,115830.0,115820.0,1.40229]
[1757728791895,0.0462041,115830.0,115820.0,1.63470174]
[1757728792195,0.0462041,115830.0,115820.0,1.40229]
[1757728792488,0.07042197,115830.0,115820.0,1.63470174]
[1757728793792,0.07042197,115830.0,115820.0,1.40229]
[1757728793995,0.07042197,115830.0,115820.0,1.63470174]
[1757728794395,0.04746787,115830.0,115820.0,1.63470174]
[1757728796298,0.12493845,115830.0,115820.0,1.63470174]
[1757728797595,0.04746787,115830.0,115820.0,1.40229]
[1757728797788,0.40826787,115830.0,115820.0,1.40229]
[1757728797991,0.04746787,115830.0,115820.0,1.63470174]
[1757728798398,0.02421787,115830.0,115820.0,1.63470174]
[1757728798599,0.64075552,115840.0,115830.0,0.03421]
[1757728798793,0.48581436,115840.0,115830.0,0.78915116]
[1757728798994,0.56328494,115840.0,115830.0,0.78915116]
[1757728799797,0.56328494,115840.0,115830.0,0.79015116]
[1757728799997,0.56328494,115840.0,115830.0,0.63521]
[1757728800302,0.56328494,115840.0,115830.0,0.63621]
[1757728800601,0.64075552,115840.0,115830.0,0.63621]
[1757728800797,0.48581436,115840.0,115830.0,0.71368058]
[1757728800990,0.49901436,115840.0,115830.0,0.63621]
[1757728801195,0.65395552,115840.0,115830.0,0.71368058]
[1757728801698,0.49901436,115840.0,115830.0,0.71368058]
[1757728801900,0.65395552,115840.0,115830.0,0.71368058]
[1757728802198,0.62309627,115840.0,115830.0,0.71368058]
[1757728802397,0.5945581,115840.0,115830.0,0.71368058]
[1757728802700,0.51708752,115840.0,115830.0,0.79115116]
[1757728803800,0.51708752,115840.0,115830.0,1.58279116]
[1757728804400,0.51708752,115840.0,115830.0,0.79115116]
[1757728804600,0.51708752,115840.0,115830.0,1.58275116]
[1757728805498,0.51708752,115840.0,115830.0,0.79115116]
[1757728805700,0.51708752,115840.0,115830.0,1.58275116]
[1757728806203,0.51708752,115840.0,115830.0,1.42781]
[1757728806405,0.51708752,115840.0,115830.0,1.58275116]
[1757728806900,0.5945581,115840.0,115830.0,0.71368058]
[1757728807205,0.43961694,115840.0,115830.0,1.50528058]
[1757728807406,0.5945581,115840.0,115830.0,1.50528058]
[1757728808000,0.43961694,115840.0,115830.0,1.50528058]
[1757728808201,0.5945581,115840.0,115830.0,1.50528058]
[1757728808605,0.5945581,115840.0,115830.0,1.54528058]
[1757728809504,0.6077581,115840.0,115830.0,0.63621]
[1757728809706,0.6077581,115840.0,115830.0,1.42781]
[1757728810001,0.62309627,115840.0,115830.0,1.50528058]
[1757728811805,0.62309627,115840.0,115830.0,1.42781]
[1757728812006,0.62309627,115840.0,115830.0,1.50528058]
[1757728812407,0.57146215,115840.0,115830.0,1.53111704]
[1757728814210,0.46815511,115840.0,115830.0,1.53111704]
[1757728814508,0.57146215,115840.0,115830.0,1.53111704]
[1757728815312,0.57146215,115840.0,115830.0,1.42781]
[1757728815611,0.57146215,115840.0,115830.0,1.42777]
[1757728816205,0.46815511,115840.0,115830.0,1.42777]
[1757728816411,0.57146215,115840.0,115830.0,1.42777]
[1757728819917,0.57106248,115840.0,115830.0,1.42777]
[1757728820316,0.46775544,115840.0,115830.0,1.42777]
[1757728820708,0.57106248,115840.0,115830.0,1.57107704]
[1757728823319,0.55786248,115840.0,115830.0,1.57107704]
[1757728823520,0.5776518,115840.0,115830.0,1.57107704]
[1757728823723,0.47434476,115840.0,115830.0,1.57107704]
[1757728824421,0.5776518,115840.0,115830.0,1.57107704]
[1757728824615,0.48964868,115840.0,115830.0,1.57107704]
[1757728825120,0.59295572,115840.0,115830.0,1.46777]
[1757728825323,0.59295572,115840.0,115830.0,1.57107704]
[1757728825716,0.48964868,115840.0,115830.0,1.57107704]
[1757728825926,0.59295572,115840.0,115830.0,1.57107704]
[1757728827224,0.59294481,115840.0,115830.0,1.57107704]
[1757728827625,0.59294481,115840.0,115830.0,1.46777]
[1757728827824,0.48963777,115840.0,115830.0,1.57107704]
[1757728828026,0.59294481,115840.0,115830.0,1.57107704]
[1757728830226,0.48963777,115840.0,115830.0,1.57107704]
[1757728830419,0.59294481,115840.0,115830.0,1.57107704]
[1757728831427,0.59294481,115840.0,115830.0,1.46777]
[1757728831725,0.59294481,115840.0,115830.0,1.57107704]